[Event "44th Chess Olympiad Open 2022"]
[Site "Chennai"]
[Date "2022.08.05"]
[Round "7.43"]
[White "Cabezas Solano, David Alejandro"]
[Black "Al Hosani, Omran"]
[Result "0-1"]
[ECO "B31"]
[WhiteElo "2196"]
[BlackElo "2215"]
[Annotator "ChessBase"]
[PlyCount "66"]
[EventDate "2022.07.29"]
[EventType "team-tourn"]
[EventCountry "IND"]
[SourceTitle "playchess.com"]
[Source "ChessBase"]
[SourceQuality "1"]
[WhiteTeam "Costa Rica"]
[BlackTeam "United Arab Emirates"]
[WhiteTeamCountry "CRI"]
[BlackTeamCountry "UAE"]
[TimeControl "40/5400+30:1800+30"]

1. e4 {[%emt 0:00:07]} c5 {[%emt 0:00:32]} 2. Nf3 {[%emt 0:00:08]} Nc6 {[%emt 0:00:10]} 3. Bb5 {[%emt 0:00:08]} g6 {[%emt 0:00:23]} 4. O-O {[%emt 0:00:12]} Bg7 {[%emt 0:00:11]} 5. c3 {[%emt 0:00:08]} e5 {[%emt 0:03:33]} 6. d4 {[%emt 0:00:53]} exd4 {[%emt 0:03:51]} 7. cxd4 {[%emt 0:00:03]} cxd4 {[%emt 0:01:10]} 8. Bf4 {[%emt 0:00:23]} d6 {[%emt 0:06:00]} 9. Nxd4 {[%emt 0:05:19]} Nge7 {[%emt 0:00:41]} 10. Nc3 {[%emt 0:07:14]} O-O {[%emt 0:04:00]} 11. Nxc6 {[%emt 0:05:50]} bxc6 {[%emt 0:00:26]} 12. Bc4 {[%emt 0:00:07]} Be5 {[%emt 0:17:56]} 13. Bh6 {[%emt 0:01:21]} Re8 {[%emt 0:07:18]} 14. Qb3 {[%emt 0:09:17]} d5 {[%emt 0:00:52]} 15. exd5 {[%emt 0:00:16]} Rb8 {[%emt 0:00:26]} 16. Qa4 {[%emt 0:04:01]} Nf5 {[%emt 0:04:38]} 17. dxc6 {[%emt 0:14:56]} Nxh6 {[%emt 0:00:49]} 18. c7 {[%emt 0:00:15]} Bxh2+ {[%emt 0:03:15]} 19. Kxh2 {[%emt 0:03:02]} Qxc7+ {[%emt 0:00:04]} 20. Kg1 {[%emt 0:00:53]} Bd7 {[%emt 0:01:09]} 21. Qa6 {[%emt 0:05:55]} Ng4 {[%emt 0:03:33]} 22. g3 {[%emt 0:05:38]} Rxb2 {[%emt 0:11:57]} 23. Nd5 {[%emt 0:10:50]} Qe5 {[%emt 0:00:21]} 24. Rae1 {[%emt 0:14:46]} Qxe1 {[%emt 0:00:35]} 25. Nf6+ {[%emt 0:00:07]} Kg7 {[%emt 0:04:02]} 26. Nxg4 {[%emt 0:01:12]} Qc3 {[%emt 0:01:14]} 27. Qxa7 {[%emt 0:04:45]} Be6 {[%emt 0:04:16]} 28. Bxe6 {[%emt 0:00:58]} Rxe6 {[%emt 0:00:07]} 29. Ne3 {[%emt 0:00:55]} Rb5 {[%emt 0:02:07]} 30. Rd1 {[%emt 0:01:25]} Ra5 {[%emt 0:05:51]} 31. Qb7 {[%emt 0:01:41]} Rxe3 {[%emt 0:00:10]} 32. fxe3 {[%emt 0:01:38]} Qxe3+ {[%emt 0:00:09]} 33. Kh1 {[%emt 0:01:30]} Rh5+ {[%emt 0:00:20]} 0-1

[Event "44th Chess Olympiad Open 2022"]
[Site "Chennai"]
[Date "2022.08.05"]
[Round "7.43"]
[White "Sultan, Ibrahim"]
[Black "Chaves Sanchez, Gabriel A"]
[Result "1-0"]
[ECO "D37"]
[WhiteElo "2108"]
[BlackElo "2125"]
[Annotator "TA"]
[PlyCount "117"]
[EventDate "2022.07.29"]
[EventType "team-tourn"]
[EventCountry "IND"]
[SourceTitle "playchess.com"]
[Source "ChessBase"]
[SourceQuality "1"]
[WhiteTeam "United Arab Emirates"]
[BlackTeam "Costa Rica"]
[WhiteTeamCountry "UAE"]
[BlackTeamCountry "CRI"]
[TimeControl "40/5400+30:1800+30"]

{[%evp 17,117,16,18,0,0,10,9,11,22,14,16,15,13,9,34,-40,0,0,0,0,0,0,0,0,-14,-17,0,-5,86,76,83,74,74,72,158,102,103,110,110,109,94,101,108,106,109,118,118,108,135,131,138,140,192,195,213,205,214,237,424,420,372,267,550,508,591,671,675,670,962,885,991,991,994,803,753,448,1008,1008,861,648,762,606,627,615,583,568,715,715,1212,1284,1128,895,10349,5919,29989,29990,29990,29991,29994,29994,29995,29996]} 1. d4 {[%emt 0:00:15]} Nf6 {[%emt 0:00:23]} 2. c4 {[%emt 0:00:07]} e6 {[%emt 0:00:14]} 3. Nf3 {[%emt 0:00:17]} d5 {[%emt 0:00:19]} 4. Nc3 {[%emt 0:00:10]} Be7 {[%emt 0:00:19]} 5. Bf4 {[%emt 0:00:06]} O-O {[%emt 0:02:18]} 6. e3 {[%emt 0:00:08]} b6 {[%emt 0:06:11]} 7. cxd5 {[%emt 0:01:34]} Nxd5 {[%emt 0:01:11]} 8. Nxd5 {[%emt 0:10:25]} exd5 {[%emt 0:09:48]} 9. Bd3 {[%emt 0:05:26]} c5 {[%emt 0:03:22]} 10. dxc5 {[%emt 0:13:19] D37: Queen's Gambit Declined: 5 Bf4.} bxc5 {[%emt 0:00:37]} 11. O-O {[%emt 0:00:08]} Nc6 {[%emt 0:07:08]} 12. Rc1 {[%emt 0:00:15] The position is equal.} Be6 {[%emt 0:03:42]} 13. Qe2 {[%emt 0:06:02]} Qb6 {[%emt 0:05:10]} 14. Rfd1 {[%emt 0:00:25]} h6 {[%emt 0:08:19] [#]} 15. Bb1 $146 {[%emt 0:00:28]} ({Predecessor:} 15. b3 a5 16. Bb5 Rfd8 17. Ne5 Nxe5 18. Bxe5 Ra7 19. h3 Rb7 20. Ba6 Ra7 21. Bb5 {0-1 (79) Antova,G (2314)-Zatonskih,A (2420) Moscow 2019}) 15... Rac8 {[%emt 0:06:50]} 16. a3 {[%emt 0:13:10]} ({White should try} 16. e4 $14 d4 17. b3) 16... a5 {[%emt 0:07:14]} 17. e4 {[%emt 0:02:35]} d4 {[%emt 0:01:47][%cal Bd5d4,Bd4d3][%mdl 32] Threatening ...c4.} 18. e5 $40 {[%emt 0:00:28][%mdl 128] White has some attack.} c4 {[%emt 0:06:13]} (18... f5 19. exf6 Rxf6 20. Bg3 $16) 19. Qe4 {[%emt 0:00:42][%csl Gb1][%cal Re4h7]} d3 {[%emt 0:01:09]} 20. Ba2 {[%emt 0:05:39]} Bc5 {[%emt 0:11:59]} 21. Bxc4 {[%emt 0:03:18]} Bxf2+ {[%emt 0:00:37]} 22. Kf1 {[%emt 0:00:19] [#]} Bxc4 {[%emt 0:01:20]} (22... Nd4 $1 $11 23. Nxd4 (23. Kxf2 Nxf3+ 24. Kxf3 Bxc4 $17) (23. Bxd3 $2 Bf5 $19) 23... Bxd4 24. Bxd3 g6) 23. Rxc4 $16 {[%emt 0:00:25]} Ne7 {[%emt 0:00:58]} (23... Qxb2 $2 24. Rd2 Qxa3 25. Kxf2 $18) 24. Rxd3 {[%emt 0:02:43]} Rxc4 {[%emt 0:04:37]} (24... Qxb2 $2 25. Rxc8 Rxc8 26. Rd2 Qxa3 27. Kxf2 $18) 25. Qxc4 {[%emt 0:00:05] And now Rd6 would win.} Ng6 {[%emt 0:00:36] [#]} (25... Qxb2 $2 26. Rd2 Qxa3 27. Kxf2 $18) (25... Rc8 $142 26. Qb3 Ng6) 26. Rd6 {[%emt 0:01:34]} (26. Rb3 $142 $1 {[%cal Rb3b6]} Qc5 27. Qxc5 Bxc5 28. Bd2) 26... Qc5 {[%emt 0:00:50] [#]} 27. Rc6 $1 {[%emt 0:01:52][%cal Bd6c6,Bc6c4,Bc4f4][%mdl 32] Active counter play!} Qxc4+ {[%emt 0:01:04]} 28. Rxc4 {[%emt 0:00:05]} Nxf4 {[%emt 0:00:43]} 29. Rxf4 {[%emt 0:00:07][%mdl 4096] Endgame KRB-KRN} Be3 {[%emt 0:00:55]} 30. Rc4 {[%emt 0:00:15]} Rb8 {[%emt 0:00:20]} 31. b4 {[%emt 0:00:48]} axb4 {[%emt 0:00:28]} 32. axb4 {[%emt 0:00:08]} Rb5 {[%emt 0:00:48]} 33. Ke2 {[%emt 0:00:15]} Bb6 {[%emt 0:00:14]} 34. Kd3 {[%emt 0:00:41]} Kh7 {[%emt 0:02:13]} (34... Rd5+ $16 35. Ke4 Rd8) 35. Rf4 $18 {[%emt 0:03:08] Threatens to win with Kc4.} Rd5+ {[%emt 0:01:04]} 36. Kc4 {[%emt 0:00:06]} Rd7 {[%emt 0:00:11]} 37. Kb5 {[%emt 0:00:14]} Bc7 {[%emt 0:01:01]} (37... Be3 38. Re4 Rd3) 38. Kc6 {[%emt 0:00:42]} Re7 {[%emt 0:00:22]} 39. b5 {[%emt 0:00:37]} Bd8 $2 {[%emt 0:03:00]} (39... Bb8 40. b6 f6 41. exf6 Rf7) 40. Rd4 {[%emt 0:03:45]} Rc7+ {[%emt 0:00:31]} 41. Kb6 {[%emt 0:30:20]} Rc8+ {[%emt 0:08:21]} 42. Kb7 {[%emt 0:00:00]} Rc5 {[%emt 0:00:05]} 43. Rxd8 {[%emt 0:00:00]} Rxb5+ {[%emt 0:00:04] KRN-KR} 44. Kc6 {[%emt 0:00:00]} Rb2 {[%emt 0:00:14]} 45. Rd2 {[%emt 0:00:00]} Rb4 {[%emt 0:00:03]} 46. Kd5 {[%emt 0:00:00] aiming for Kd6.} Kg6 {[%emt 0:00:19]} (46... Kg8 $142 47. Ra2 Rb5+ 48. Ke4 Rb7) 47. Nd4 {[%emt 0:00:00]} Ra4 {[%emt 0:00:27]} 48. Rd3 {[%emt 0:00:00]} Ra5+ {[%emt 0:00:39]} 49. Ke4 {[%emt 0:00:00]} Ra4 {[%emt 0:00:11]} 50. Rg3+ {[%emt 0:00:00]} Kh7 {[%emt 0:00:07]} 51. Kd5 {[%emt 0:00:00]} g6 {[%emt 0:01:38]} 52. Nc6 {[%emt 0:00:00]} Ra2 {[%emt 0:00:25]} 53. Kd6 {[%emt 0:00:00]} Kg7 {[%emt 0:00:56]} 54. Ke7 {[%emt 0:00:00] Black must now prevent Rf3.} Re2 {[%emt 0:02:22]} 55. Rf3 {[%emt 0:00:00]} Rxg2 {[%emt 0:00:33]} 56. Rxf7+ {[%emt 0:00:00] White mates.} Kg8 {[%emt 0:00:07]} 57. e6 {[%emt 0:00:00]} h5 {[%emt 0:01:23]} 58. Ne5 {[%emt 0:00:00]} h4 {[%emt 0:00:13]} 59. Nd7 {[%emt 0:00:00] Weighted Error Value: White=0.24 (precise) /Black=0.36} 1-0

[Event "44th Chess Olympiad Open 2022"]
[Site "Chennai"]
[Date "2022.08.05"]
[Round "7.44"]
[White "Rakotomaharo, Fy Antenaina"]
[Black "Zaibi, Amir"]
[Result "1-0"]
[ECO "B47"]
[WhiteElo "2490"]
[BlackElo "2398"]
[Annotator "ChessBase"]
[PlyCount "75"]
[EventDate "2022.07.29"]
[EventType "team-tourn"]
[EventCountry "IND"]
[SourceTitle "playchess.com"]
[Source "ChessBase"]
[SourceQuality "1"]
[WhiteTeam "Madagascar"]
[BlackTeam "Tunisia"]
[WhiteTeamCountry "MAD"]
[BlackTeamCountry "TUN"]
[TimeControl "40/5400+30:1800+30"]

1. e4 {[%emt 0:00:03]} c5 {[%emt 0:00:07]} 2. Nf3 {[%emt 0:00:06]} e6 {[%emt 0:00:07]} 3. d4 {[%emt 0:00:11]} cxd4 {[%emt 0:00:05]} 4. Nxd4 {[%emt 0:00:04]} Nc6 {[%emt 0:00:06]} 5. Nc3 {[%emt 0:00:10]} Qc7 {[%emt 0:00:06]} 6. g4 {[%emt 0:00:44]} a6 {[%emt 0:03:01]} 7. Bg2 {[%emt 0:00:26]} Nge7 {[%emt 0:04:16]} 8. Be3 {[%emt 0:00:10]} Ng6 {[%emt 0:02:04]} 9. h4 {[%emt 0:01:38]} Bd6 {[%emt 0:11:43]} 10. Nxc6 {[%emt 0:27:13]} bxc6 {[%emt 0:03:19]} 11. Ne2 {[%emt 0:21:36]} a5 {[%emt 0:04:21]} 12. h5 {[%emt 0:01:18]} Ne5 {[%emt 0:10:14]} 13. Qd4 {[%emt 0:00:11]} Bb4+ {[%emt 0:00:51]} 14. Nc3 {[%emt 0:07:02]} c5 {[%emt 0:01:30]} 15. Qd1 {[%emt 0:00:06]} Nc4 {[%emt 0:02:40]} 16. Bc1 {[%emt 0:00:10]} Bb7 {[%emt 0:11:02]} 17. Qf3 {[%emt 0:10:08]} Qe5 {[%emt 0:15:35]} 18. Bf4 {[%emt 0:05:01]} Qf6 {[%emt 0:02:54]} 19. g5 {[%emt 0:00:23]} Bxc3+ {[%emt 0:01:41]} 20. bxc3 {[%emt 0:00:05]} Qe7 {[%emt 0:00:10]} 21. Rb1 {[%emt 0:09:18]} Bc6 {[%emt 0:01:26]} 22. Qd3 {[%emt 0:03:50]} e5 {[%emt 0:02:58]} 23. Bc1 {[%emt 0:02:43]} Nd6 {[%emt 0:00:14]} 24. O-O {[%emt 0:00:21]} O-O {[%emt 0:03:09]} 25. Rd1 {[%emt 0:01:28]} Nb7 {[%emt 0:00:53]} 26. Bh3 {[%emt 0:01:30]} Rfb8 {[%emt 0:03:07]} 27. Be3 {[%emt 0:01:28]} h6 {[%emt 0:03:58]} 28. gxh6 {[%emt 0:03:19]} Qh4 {[%emt 0:00:09]} 29. Kh2 {[%emt 0:01:35]} Nd8 {[%emt 0:05:40]} 30. Rxb8 {[%emt 0:00:30]} Rxb8 {[%emt 0:00:04]} 31. Qd6 {[%emt 0:00:21]} Rb2 {[%emt 0:03:50]} 32. hxg7 {[%emt 0:00:49]} Ne6 {[%emt 0:00:42]} 33. Rg1 {[%emt 0:00:07]} Rxc2 {[%emt 0:03:00]} 34. Qb8+ {[%emt 0:01:59]} Nd8 {[%emt 0:00:08]} 35. Rg5 {[%emt 0:00:03]} Rxf2+ {[%emt 0:00:24]} 36. Kg1 {[%emt 0:00:04]} Rg2+ {[%emt 0:00:51]} 37. Bxg2 {[%emt 0:00:18]} Qe1+ {[%emt 0:00:07]} 38. Kh2 {[%emt 0:00:03]} 1-0

[Event "44th Chess Olympiad Open 2022"]
[Site "Chennai"]
[Date "2022.08.05"]
[Round "7.44"]
[White "Boudriga, Mohamed Ali"]
[Black "Andrianiaina, Heritiana"]
[Result "1-0"]
[ECO "E05"]
[WhiteElo "2308"]
[BlackElo "2095"]
[Annotator "TA"]
[PlyCount "133"]
[EventDate "2022.07.29"]
[EventType "team-tourn"]
[EventCountry "IND"]
[SourceTitle "playchess.com"]
[Source "ChessBase"]
[SourceQuality "1"]
[WhiteTeam "Tunisia"]
[BlackTeam "Madagascar"]
[WhiteTeamCountry "TUN"]
[BlackTeamCountry "MAD"]
[TimeControl "40/5400+30:1800+30"]

{[%evp 25,133,16,36,29,53,48,57,47,83,83,83,80,74,89,80,81,75,72,59,61,81,77,89,47,48,56,71,23,31,25,26,25,67,70,68,67,129,102,110,102,120,112,141,141,141,141,141,123,141,115,114,114,113,110,115,115,115,110,110,102,110,101,101,95,95,95,95,95,95,95,95,95,95,95,127,128,297,183,270,183,29954,29958,29976,44,4141,0,29976,29968,29968,44,135,0,29968,0,29975,29959,29966,0,29968,0,863,833,29983,29984,29985,29986,29986,29987,29987,29987]} 1. Nf3 {[%emt 0:01:27]} Nf6 {[%emt 0:00:56]} 2. g3 {[%emt 0:00:56]} d5 {[%emt 0:00:23]} 3. c4 {[%emt 0:01:36]} e6 {[%emt 0:00:13]} 4. Bg2 {[%emt 0:00:05]} Be7 {[%emt 0:00:07]} 5. O-O {[%emt 0:00:12]} O-O {[%emt 0:00:05]} 6. d4 {[%emt 0:01:47]} dxc4 {[%emt 0:01:15]} 7. Ne5 {[%emt 0:05:18]} Nc6 {[%emt 0:00:56]} 8. Nxc6 {[%emt 0:01:07]} bxc6 {[%emt 0:00:07]} 9. Na3 {[%emt 0:00:13]} Bxa3 {[%emt 0:02:21]} 10. bxa3 {[%emt 0:00:07]} Nd5 {[%emt 0:00:37]} 11. Qa4 {[%emt 0:06:15]} Nb6 {[%emt 0:02:28]} 12. Qxc6 {[%emt 0:00:17]} Rb8 {[%emt 0:00:28]} 13. Qc5 {[%emt 0:00:10]} Bb7 {[%emt 0:03:17]} 14. e4 {[%emt 0:00:31] E05: Open Catalan: 5 Nf3 Be7.} Qd6 {[%emt 0:12:09]} 15. Bf4 {[%emt 0:20:29]} Qxc5 {[%emt 0:00:06]} 16. dxc5 {[%emt 0:00:03] White is slightly better.} Na4 {[%emt 0:00:16]} 17. Rfc1 $1 {[%emt 0:06:04]} Ba6 {[%emt 0:01:45]} 18. Bf1 $1 {[%emt 0:10:21]} (18. Bxc7 $6 Rbc8 19. Bd6 Rfd8 $11) 18... Rfc8 {[%emt 0:04:28]} 19. Bxc4 {[%emt 0:04:55]} Nxc5 {[%emt 0:01:17]} 20. Be3 {[%emt 0:03:17]} Bxc4 {[%emt 0:00:07]} 21. Rxc4 {[%emt 0:01:23]} ({Don't play} 21. Bxc5 Bd3 $11) 21... Nd7 {[%emt 0:00:25][%cal Bc5d7,Bd7b6,Bb6a4,Ba4b2][%mdl 32] [#]} 22. Rd1 $146 {[%emt 0:09:29]} ({Predecessor:} 22. Bxa7 Ra8 23. Be3 Rxa3 24. Rac1 c5 25. Bxc5 Rxa2 26. Bd6 Rxc4 27. Rxc4 Ra8 28. Bf4 Kf8 29. Rc2 h6 30. Kg2 Nf6 31. f3 {½-½ (31) Schreiner,P (2460)-Kovacs,G (2459) Austria 2013}) 22... Nb6 {[%emt 0:06:37]} 23. Rc6 {[%emt 0:00:37]} Kf8 {[%emt 0:02:27]} 24. a4 {[%emt 0:05:15] Black must now prevent a5. White is much more active.} Nxa4 {[%emt 0:15:32]} 25. Bxa7 {[%emt 0:00:15]} Rb2 {[%emt 0:15:24]} 26. Rd7 {[%emt 0:19:48]} (26. Bd4 $16 Rxa2 27. Rdc1) 26... Rb7 {[%emt 0:05:48] Hoping for ...Ke8.} 27. Be3 {[%emt 0:01:00]} Ke8 {[%emt 0:01:16]} 28. Rd2 {[%emt 0:00:23]} Rb2 {[%emt 0:15:00]} 29. Rxb2 {[%emt 0:00:10]} Nxb2 $14 {[%emt 0:00:05][%mdl 4096] Endgame KRB-KRN} 30. Bd4 {[%emt 0:00:35][%csl LRb2,LRg7]} Nd3 {[%emt 0:01:03]} ({Black should play} 30... Kd7 $1 $14 31. Rc2 Na4) 31. Rc3 {[%emt 0:00:53]} e5 {[%emt 0:02:20]} 32. Bb6 {[%emt 0:00:39]} ({Much weaker is} 32. Rxd3 $6 Rd8 $11) 32... Nb4 {[%emt 0:00:16]} 33. Rxc7 {[%emt 0:00:23]} Rxc7 {[%emt 0:00:55]} 34. Bxc7 {[%emt 0:00:03]} Nxa2 {[%emt 0:00:08]} 35. Bxe5 $16 {[%emt 0:00:12] KB-KN} f6 {[%emt 0:00:06]} 36. Bd4 {[%emt 0:00:16]} Kf7 {[%emt 0:01:33]} 37. Kf1 {[%emt 0:01:29]} Nb4 {[%emt 0:00:32]} 38. Bc3 {[%emt 0:00:19]} Nc6 {[%emt 0:01:37]} 39. Ke2 {[%emt 0:00:13]} Ke6 {[%emt 0:02:10]} 40. f4 {[%emt 0:01:01]} g6 {[%emt 0:00:33]} 41. Kf3 {[%emt 0:30:53]} h5 {[%emt 0:32:30]} 42. h3 {[%emt 0:00:25]} Na7 {[%emt 0:00:00]} 43. g4 {[%emt 0:00:00]} hxg4+ {[%emt 0:00:00]} 44. Kxg4 {[%emt 0:00:00]} Nb5 {[%emt 0:00:00]} 45. f5+ {[%emt 0:00:00]} Kf7 {[%emt 0:00:00]} 46. Bb4 {[%emt 0:00:00]} Nd4 {[%emt 0:00:00]} 47. h4 {[%emt 0:00:00]} gxf5+ {[%emt 0:00:00]} 48. exf5 {[%emt 0:00:00]} Kg7 {[%emt 0:00:00]} 49. Bd2 {[%emt 0:00:00]} Nc6 {[%emt 0:00:00]} 50. Kf3 {[%emt 0:00:00]} Ne7 $2 {[%emt 0:00:00] [#]} (50... Ne5+ $16 51. Ke4 Ng4) 51. Ke4 $1 $18 {[%emt 0:00:00]} Kf7 {[%emt 0:00:00]} 52. Bf4 {[%emt 0:00:00]} Kg7 $2 {[%emt 0:00:00]} (52... Nc8 $18 53. Bc7 Ne7) 53. h5 {[%emt 0:01:20]} Kh7 {[%emt 0:02:58]} 54. Bd6 $2 {[%emt 0:02:15]} (54. h6 Ng8 55. Kd5 Ne7+ 56. Ke6 Nc6 57. Kxf6 Kg8 58. Ke6 Kh7 59. Kd7) 54... Nc8 $2 {[%emt 0:02:39][%mdl 8192]} (54... Ng8 $14) 55. Bf4 {[%emt 0:02:32]} (55. Bf8 $18 Nb6 56. Bc5) 55... Ne7 $1 {[%emt 0:00:04]} 56. Be3 {[%emt 0:00:55]} Kg7 {[%emt 0:00:23]} 57. Bc5 $2 {[%emt 0:00:34]} (57. h6+ {mates} Kf7 58. Bf4 Nc6 59. Bd6 Na7 60. Kd5 Nb5 61. Bb4 (61. Kc5 Nc3 $18) 61... Kg8 62. Ke6) 57... Nc6 {[%emt 0:01:10]} ({Black should try} 57... Ng8 $1 $14) 58. Be3 $2 {[%emt 0:00:31][%mdl 8192]} (58. Kd5 $16 Ne5 59. Be3) 58... Ne7 $1 {[%emt 0:00:55]} 59. Bf4 {[%emt 0:00:24]} Kh7 $1 {[%emt 0:00:09]} 60. Bd2 {[%emt 0:00:26]} Kg7 {[%emt 0:00:12]} 61. Bf4 {[%emt 0:00:24]} Kh7 $1 {[%emt 0:00:08]} 62. Bd6 {[%emt 0:00:21]} (62. h6 $142 Ng8 63. Kd5 Ne7+ 64. Ke6 Nc6 65. Kxf6 Nd8 66. Ke7 Nc6+ 67. Ke8) 62... Nc8 {[%emt 0:00:21]} 63. Bf8 {[%emt 0:00:09] Threatening mate with Kd5.} Kg8 {[%emt 0:00:15]} 64. Bc5 {[%emt 0:00:12] White mates.} Kh7 {[%emt 0:03:05] [#]} 65. Kd5 $1 {[%emt 0:00:07]} Kh6 {[%emt 0:00:04]} 66. Ke6 {[%emt 0:00:06]} Kg5 {[%emt 0:00:55]} 67. h6 {[%emt 0:00:05] Weighted Error Value: White=0.70/Black=0.28 (precise)} ({Not} 67. Kd7 Kxf5 68. Be3 (68. Kxc8 Kg5 $11) 68... Nb6+ 69. Ke8 (69. Bxb6 Kg5 $11) 69... Nc4 $11) 1-0

[Event "44th Chess Olympiad Open 2022"]
[Site "Chennai"]
[Date "2022.08.05"]
[Round "7.44"]
[White "Meddeb, Anis"]
[Black "Rakotomaharavo, Dylan"]
[Result "1/2-1/2"]
[ECO "B45"]
[WhiteElo "2121"]
[BlackElo "1948"]
[Annotator "TA"]
[PlyCount "62"]
[EventDate "2022.07.29"]
[EventType "team-tourn"]
[EventCountry "IND"]
[SourceTitle "playchess.com"]
[Source "ChessBase"]
[SourceQuality "1"]
[WhiteTeam "Tunisia"]
[BlackTeam "Madagascar"]
[WhiteTeamCountry "TUN"]
[BlackTeamCountry "MAD"]
[TimeControl "40/5400+30:1800+30"]

{[%evp 12,62,0,-7,6,-13,-25,-57,-59,-60,-49,-143,-59,-64,-48,-48,-53,-48,-63,-57,-56,-60,-63,-63,-44,-48,22,27,36,-37,0,-24,0,-16,0,-12,52,31,42,62,33,48,46,72,45,47,47,0,31,0,62,0,59]} 1. e4 {[%emt 0:00:04]} c5 {[%emt 0:00:07]} 2. Nf3 {[%emt 0:00:08]} Nc6 {[%emt 0:00:17]} 3. d4 {[%emt 0:00:14]} cxd4 {[%emt 0:00:07]} 4. Nxd4 {[%emt 0:00:05]} Nf6 {[%emt 0:00:26]} 5. Nc3 {[%emt 0:00:22]} e6 {[%emt 0:00:15]} 6. Bc4 {[%emt 0:10:58]} Bb4 {[%emt 0:03:26]} 7. O-O {[%emt 0:00:25]} O-O {[%emt 0:00:34] B45: Sicilian Four Knights.} 8. Bg5 {[%emt 0:02:51]} h6 {[%emt 0:00:17]} 9. Bh4 {[%emt 0:03:12]} g5 {[%emt 0:05:38] Black is slightly better.} 10. Nxc6 {[%emt 0:01:49] [#]} bxc6 $146 {[%emt 0:01:50]} ({Predecessor:} 10... dxc6 11. e5 Bxc3 12. bxc3 Qxd1 13. Raxd1 Ne4 14. Rd4 Nxc3 15. Bg3 b5 16. Bd3 c5 {½-½ (33) Tekeyev,Z (2081)-Shkurat,S (2123) Nevinnomyssk 2010}) 11. e5 {[%emt 0:05:57]} ({White should play} 11. Bg3 $1 $15) 11... Bxc3 {[%emt 0:00:56]} (11... gxh4 $17 12. exf6 Qxf6) 12. bxc3 $15 {[%emt 0:01:10]} gxh4 {[%emt 0:00:13]} 13. exf6 {[%emt 0:01:56]} Qxf6 {[%emt 0:00:33]} 14. Qd6 {[%emt 0:01:18]} Qxc3 {[%emt 0:05:39]} 15. Bd3 {[%emt 0:08:40]} f5 {[%emt 0:05:54]} 16. Rab1 {[%emt 0:02:46]} Qf6 {[%emt 0:01:02]} 17. Rfe1 {[%emt 0:01:25] Against e5} Rf7 {[%emt 0:01:03]} 18. Rb4 {[%emt 0:14:59]} Qe7 {[%emt 0:01:24]} (18... a5 $15 19. Rb6 Qg5) 19. Qxe7 $11 {[%emt 0:02:42]} Rxe7 {[%emt 0:00:06]} 20. Rxh4 {[%emt 0:00:18]} (20. Bxf5 $1 $14 Ba6 21. Rxh4) 20... Rg7 {[%emt 0:02:37]} 21. Rb1 {[%emt 0:05:33]} a5 {[%emt 0:02:38]} 22. Rb6 {[%emt 0:00:54]} Kf7 {[%emt 0:00:31]} 23. Rxh6 {[%emt 0:00:15]} Ke7 {[%emt 0:00:14]} ({Better is} 23... Rg4 $1 $11) 24. h4 {[%emt 0:03:43]} Kd6 {[%emt 0:00:17]} 25. Rh8 {[%emt 0:02:50] Black must now prevent h5.} Kc7 {[%emt 0:00:35]} (25... Bb7 $2 26. Rxa8 Bxa8 27. Rb8 $18) 26. Rb3 {[%emt 0:00:34]} Bb7 {[%emt 0:00:59]} 27. Rxa8 {[%emt 0:00:43]} Bxa8 {[%emt 0:00:06]} 28. Ra3 {[%emt 0:00:59]} Kb6 {[%emt 0:00:15]} 29. Rb3+ {[%emt 0:00:09]} Kc7 $1 {[%emt 0:00:31]} 30. Ra3 {[%emt 0:01:14]} Kb6 $1 {[%emt 0:01:51]} 31. Rb3+ {[%emt 0:00:20]} Kc7 $1 {[%emt 0:00:20] Weighted Error Value: White=0.21 (precise) /Black=0.19 (very precise)} 1/2-1/2